fUSD/lending_fUSD_20250617
["ID","MTS","AMOUNT","RATE_DAILY","PERIOD"]
[366219556,1750128646955,-490.0,0.00016599,2]
[366219557,1750128646966,-490.0,0.00016599,2]
[366219558,1750128646976,-499.72128752,0.00016599,2]
[366219559,1750128646985,-490.0,0.00016599,2]
[366219560,1750128646996,-495.91696295,0.00016599,2]
[366219561,1750128647006,-490.0,0.00016599,2]
[366219562,1750128647016,-490.0,0.00016599,2]
[366219563,1750128647026,-490.0,0.00016599,2]
[366219564,1750128647036,-497.86510469,0.00016599,2]
[366219565,1750128647046,-500.80414805,0.00016599,2]
[366219566,1750128647056,-493.44254407,0.00016599,2]
[366219567,1750128647066,-5020.28343602,0.00016599,2]
[366219568,1750128647076,-495.54521153,0.00016599,2]
[366219569,1750128647087,-495.50069977,0.00016599,2]
[366219570,1750128647096,-493.04442378,0.00016599,2]
[366219571,1750128647106,-490.0,0.00016599,2]
[366219572,1750128647116,-500.56318137,0.00016599,2]
[366219573,1750128647126,-493.61164035,0.00016599,2]
[366219574,1750128647135,-499.80832726,0.00016599,2]
[366219575,1750128647144,-490.0,0.00016599,2]
[366219576,1750128647155,-491.51444269,0.00016599,2]
[366219577,1750128647165,-490.0,0.00016599,2]
[366219578,1750128647175,-490.0,0.00016599,2]
[366219579,1750128647184,-493.34911957,0.00016599,2]
[366219580,1750128647194,-490.0,0.00016599,2]
[366219581,1750128647204,-493.9203805,0.00016599,2]
[366219582,1750128647213,-427.71718918,0.00016599,2]
[366219583,1750128647223,-490.6801253,0.00016599,2]
[366219584,1750128647319,-495.85875913,0.00016599,2]
[366219585,1750128647330,-493.83078139,0.00016599,2]
[366219586,1750128647340,-492.90625581,0.00016599,2]
[366219587,1750128647349,-490.0,0.00016599,2]
[366219588,1750128647359,-490.0,0.00016599,2]
[366219589,1750128647368,-498.0403243,0.00016599,2]
[366219590,1750128647378,-490.99722176,0.00016599,2]
[366219591,1750128647387,-353.53712512,0.00016599,2]
[366219592,1750128647396,-493.6652014,0.00016599,2]
[366219593,1750128647406,-500.65076365,0.00016599,2]
[366219594,1750128647415,-492.48221153,0.00016599,2]
[366219595,1750128647424,-482.71655224,0.00016599,2]
[366219596,1750128647435,-495.80926366,0.00016599,2]
[366219597,1750128647446,-486.98909971,0.00016599,2]
[366219598,1750128647456,-495.72481173,0.00016599,2]
[366219599,1750128647465,-496.35450591,0.00016599,2]
[366219600,1750128647474,-495.45619855,0.00016599,2]
[366219601,1750128647484,-492.08292032,0.00016599,2]
[366219602,1750128647494,-494.9162565,0.00016599,2]
[366219603,1750128647503,-490.0,0.00016599,2]
[366219604,1750128647515,-491.5378574,0.00016599,2]
[366219605,1750128647524,-491.8032146,0.00016599,2]
[366219606,1750128647534,-496.78773075,0.00016599,2]
[366219607,1750128647543,-492.23402773,0.00016599,2]
[366219608,1750128647553,-500.34958725,0.00016599,2]
[366219609,1750128647563,-490.0,0.00016599,2]
[366219610,1750128647572,-490.0,0.00016599,2]
[366219611,1750128647581,-498.19847481,0.00016599,2]
[366219612,1750128647591,-493.09585219,0.00016599,2]
[366219613,1750128647600,-421.96629226,0.00016599,2]
[366219614,1750128647609,-490.0,0.00016599,2]
[366219615,1750128647620,-585.60313762,0.00016599,2]
[366219616,1750128647630,-492.00284012,0.00016599,2]
[366219617,1750128647641,-490.0,0.00016599,2]
[366219618,1750128647650,-491.83111116,0.00016599,2]
[366219619,1750128647660,-490.0,0.00016599,2]
[366219620,1750128647670,-494.09881896,0.00016599,2]
[366219621,1750128647679,-490.0,0.00016599,2]
[366219622,1750128647689,-490.0,0.00016599,2]
[366219623,1750128647699,-490.0,0.00016599,2]
[366219624,1750128647708,-379.2726491,0.00016599,2]
[366219625,1750128647719,-490.0,0.00016599,2]
[366219626,1750128647729,-490.0,0.00016599,2]
[366219627,1750128647738,-492.66070411,0.00016599,2]
[366219628,1750128647748,-490.83404968,0.00016599,2]
[366219629,1750128647757,-495.22006244,0.00016599,2]
[366219630,1750128647767,-499.11763007,0.00016599,2]
[366219631,1750128647776,-513.91750212,0.00016599,2]
[366219632,1750128647786,-519.6623751,0.00016599,2]
[366219633,1750128647796,-503.04162326,0.00016599,2]
[366219634,1750128647805,-490.0,0.00016599,2]
[366219635,1750128647815,-168.21747792,0.00016614,2]
[366219636,1750128647824,-833.87704394,0.0001663,2]
[366219637,1750128647834,-1624.80774448,0.00016632,2]
[366219638,1750128647843,-677.58323057,0.00016633,2]
[366219639,1750128647853,-972.833559,0.0001666,2]
[366219640,1750128647863,-552.3511463,0.00016662,2]
[366219641,1750128647872,-529.28793648,0.00016662,2]
[366219642,1750128647881,-168.21747792,0.00016671,2]
[366219643,1750128647891,-1624.80774448,0.00016677,2]
[366219644,1750128647900,-677.58323057,0.00016677,2]
[366219645,1750128647909,-500.0,0.00016685,2]
[366219646,1750128647918,-5000.0,0.000167,2]
[366219647,1750128647928,-156.4,0.00016712,2]
[366219648,1750128647937,-187.15,0.00016712,2]
[366219649,1750128647946,-1624.80774448,0.00016721,2]
[366219650,1750128647955,-677.58323057,0.00016722,2]
[366219651,1750128647965,-168.21747792,0.00016728,2]
[366219652,1750128647974,-155.314,0.00016739,2]
[366219653,1750128647983,-948.096,0.00016739,2]
[366219654,1750128647992,-419.08765882,0.00016739,2]
[366219655,1750128648710,-490.0,0.00016598,2]
[366219656,1750128648720,-521.23,0.00016598,2]
[366219657,1750128648731,-2913.91234118,0.00016739,2]
[366219658,1750128648743,-637.0,0.00016739,2]
[366219659,1750128648755,-195.72938562,0.00016739,2]
[366219660,1750128648770,-606.27061438,0.00016739,2]
[366219661,1750128648780,-558.0,0.00016739,2]
[366219662,1750128648791,-593.046,0.00016739,2]
[366219663,1750128648802,-1844.68338562,0.00016739,2]
[366219664,1750128648820,-158.31661438,0.00016739,2]
[366219665,1750128648831,-644.69884337,0.00016739,2]
[366219666,1750128648844,-632.30115663,0.00016739,2]
[366219667,1750128648855,-930.558,0.00016739,2]
[366219668,1750128648867,-1679.897,0.00016739,2]
[366219669,1750128648878,-3957.16437112,0.00016739,2]
[366219670,1750128648901,-133.83562888,0.00016739,2]
[366219671,1750128648911,-4474.23244196,0.00016739,2]
[366219672,1750128648924,-858.6849167,0.00016739,2]
[366219673,1750128648942,-1780.08264134,0.00016739,2]
[366219674,1750128648953,-884.0,0.00016739,2]
[366219675,1750128648963,-854.0,0.00016739,2]
[366219676,1750128648974,-155.0,0.00016739,2]
[366219677,1750128648984,-328.85546436,0.00016757,2]
[366219678,1750128648994,-500.0,0.00016762,2]
[366219679,1750128649008,-490.0,0.00016763,2]
[366219680,1750128649019,-490.0,0.00016763,2]
[366219681,1750128649033,-697.07,0.00016763,2]
[366219682,1750128649044,-490.0,0.00016763,2]
[366219683,1750128649055,-490.0,0.00016763,2]
[366219684,1750128649066,-490.0,0.00016763,2]
[366219685,1750128649077,-184.02497764,0.00016763,2]
[366219686,1750128649087,-490.0,0.00016763,2]
[366219687,1750128649098,-490.0,0.00016763,2]
[366219688,1750128649109,-490.0,0.00016763,2]
[366219689,1750128649121,-490.0,0.00016763,2]
[366219690,1750128649132,-602.43406304,0.00016763,2]
[366219691,1750128649143,-277.91077418,0.00016763,2]
[366219692,1750128649155,-198.0698034,0.00016763,2]
[366219693,1750128649166,-490.0,0.00016763,2]
[366219694,1750128649178,-490.0,0.00016763,2]
[366219695,1750128649190,-490.0,0.00016763,2]
[366219696,1750128649200,-557.83967562,0.00016763,2]
[366219697,1750128649211,-490.0,0.00016763,2]
[366219698,1750128649223,-617.73,0.00016763,2]
[366219699,1750128649234,-490.0,0.00016763,2]
[366219700,1750128649245,-490.0,0.00016763,2]
[366219701,1750128649256,-490.0,0.00016763,2]
[366219702,1750128649267,-490.0,0.00016763,2]
[366219703,1750128649280,-490.0,0.00016763,2]
[366219704,1750128649291,-490.0,0.00016763,2]
[366219705,1750128649302,-490.0,0.00016763,2]
[366219706,1750128649314,-490.0,0.00016763,2]
[366219707,1750128649325,-433.73,0.00016763,2]
[366219708,1750128649337,-299.82818816,0.00016763,2]
[366219709,1750128649348,-205.79,0.00016763,2]
[366219710,1750128649359,-490.0,0.00016763,2]
[366219711,1750128649370,-490.0,0.00016763,2]
[366219712,1750128649381,-490.0,0.00016763,2]
[366219713,1750128649393,-154.64,0.00016763,2]
[366219714,1750128649409,-490.0,0.00016763,2]
[366219715,1750128649419,-490.0,0.00016763,2]
[366219716,1750128649430,-533.91,0.00016763,2]
[366219717,1750128649445,-490.0,0.00016763,2]
[366219718,1750128649456,-490.0,0.00016763,2]
[366219719,1750128649467,-490.0,0.00016763,2]
[366219720,1750128649478,-614.57216933,0.00016763,2]
[366219721,1750128649489,-490.0,0.00016763,2]
[366219722,1750128649500,-490.0,0.00016763,2]
[366219723,1750128649511,-490.0,0.00016763,2]
[366219724,1750128649522,-490.0,0.00016763,2]
[366219725,1750128649534,-490.0,0.00016763,2]
[366219726,1750128649545,-217.21047541,0.00016763,2]
[366219727,1750128649569,-490.0,0.00016763,2]
[366219728,1750128649583,-490.0,0.00016763,2]
[366219729,1750128649596,-490.0,0.00016763,2]
[366219730,1750128649609,-490.0,0.00016763,2]
[366219731,1750128649621,-511.10430697,0.00016763,2]
[366219732,1750128649635,-490.0,0.00016763,2]
[366219733,1750128649647,-490.0,0.00016763,2]
[366219734,1750128649660,-492.97698855,0.00016763,2]
[366219735,1750128649673,-490.0,0.00016763,2]
[366219736,1750128649685,-490.0,0.00016763,2]
[366219737,1750128649697,-299.17931044,0.00016763,2]
[366219738,1750128649709,-490.0,0.00016763,2]
[366219739,1750128649721,-490.0,0.00016763,2]
[366219740,1750128649733,-490.0,0.00016763,2]
[366219741,1750128649746,-894.14,0.00016763,2]
[366219742,1750128649758,-1797.07,0.00016763,2]
[366219743,1750128649770,-490.0,0.00016763,2]
[366219744,1750128649783,-490.0,0.00016763,2]
[366219745,1750128649796,-490.0,0.00016763,2]
[366219746,1750128649808,-490.0,0.00016763,2]
[366219747,1750128649819,-490.0,0.00016763,2]
[366219748,1750128649831,-490.0,0.00016763,2]
[366219749,1750128649843,-2242.48,0.00016763,2]
[366219750,1750128649855,-490.0,0.00016763,2]
[366219751,1750128649866,-3160.69,0.00016763,2]
[366219752,1750128649878,-490.0,0.00016763,2]
[366219753,1750128649890,-776.56,0.00016763,2]
[366219754,1750128649902,-1021.67,0.00016763,2]
[366219755,1750128649913,-490.0,0.00016763,2]
[366219756,1750128649925,-490.0,0.00016763,2]
[366219757,1750128649936,-490.0,0.00016763,2]
[366219758,1750128649947,-490.0,0.00016763,2]
[366219759,1750128649958,-2526.69,0.00016763,2]
[366219760,1750128649970,-490.0,0.00016763,2]
[366219761,1750128649988,-1224.35,0.00016763,2]
[366219762,1750128650000,-490.0,0.00016763,2]
[366219763,1750128650015,-667.56,0.00016763,2]
[366219764,1750128650029,-490.0,0.00016763,2]
[366219765,1750128650052,-336.82406233,0.00016763,2]
[366219766,1750128650068,-266.02952168,0.00016763,2]
[366219767,1750128650082,-490.0,0.00016763,2]
[366219768,1750128650095,-490.0,0.00016763,2]
[366219769,1750128650107,-659.17,0.00016763,2]
[366219770,1750128650120,-2354.57,0.00016763,2]
[366219771,1750128650134,-534.99,0.00016763,2]
[366219772,1750128650146,-448.27,0.00016763,2]
[366219773,1750128650160,-527.47,0.00016763,2]
[366219774,1750128650173,-609.87,0.00016763,2]
[366219775,1750128650187,-1795.81,0.00016763,2]
[366219776,1750128650201,-490.0,0.00016763,2]
[366219777,1750128650214,-490.0,0.00016763,2]
[366219778,1750128650227,-851.78,0.00016763,2]
[366219779,1750128650239,-490.0,0.00016763,2]
[366219780,1750128650250,-490.0,0.00016763,2]
[366219781,1750128650261,-490.0,0.00016763,2]
[366219782,1750128650276,-490.0,0.00016763,2]
[366219783,1750128650288,-490.0,0.00016763,2]
[366219784,1750128650300,-742.93,0.00016763,2]
[366219785,1750128650314,-394.64142234,0.00016763,2]
[366219786,1750128650327,-490.0,0.00016763,2]
[366219787,1750128650339,-3576.06,0.00016763,2]
[366219788,1750128650352,-490.0,0.00016763,2]
[366219789,1750128650366,-490.0,0.00016763,2]
[366219790,1750128650380,-490.0,0.00016763,2]
[366219791,1750128650399,-201.15,0.00016763,2]
[366219792,1750128650411,-864.15,0.00016763,2]
[366219793,1750128650424,-490.0,0.00016763,2]
[366219794,1750128650439,-490.0,0.00016763,2]
[366219795,1750128650452,-490.0,0.00016763,2]
[366219796,1750128650465,-490.0,0.00016763,2]
[366219797,1750128650478,-1804.45,0.00016763,2]
[366219798,1750128650491,-1645.26,0.00016763,2]
[366219799,1750128650504,-490.0,0.00016763,2]
[366219800,1750128650518,-212.20229998,0.00016763,2]
[366219801,1750128650532,-391.43963946,0.00016763,2]
[366219802,1750128650544,-399.44156483,0.00016763,2]
[366219803,1750128650557,-651.19,0.00016763,2]
[366219804,1750128650569,-5002.67,0.00016763,2]
[366219805,1750128650582,-490.0,0.00016763,2]
[366219806,1750128650596,-490.0,0.00016763,2]
[366219807,1750128650614,-490.0,0.00016763,2]
[366219808,1750128650629,-490.0,0.00016763,2]
[366219809,1750128650643,-2680.01,0.00016763,2]
[366219810,1750128650659,-715.38,0.00016763,2]
[366219811,1750128650672,-490.0,0.00016763,2]
[366219812,1750128650684,-490.0,0.00016763,2]
[366219813,1750128650695,-320.82,0.00016763,2]
[366219814,1750128650708,-490.0,0.00016763,2]
[366219815,1750128650718,-586.58510843,0.00016763,2]
[366219816,1750128650733,-168.58,0.00016763,2]
[366219817,1750128650749,-539.86914498,0.00016763,2]
[366219818,1750128650762,-709.83,0.00016763,2]
[366219819,1750128650773,-490.0,0.00016763,2]
[366219820,1750128650784,-490.0,0.00016763,2]
[366219821,1750128650795,-490.0,0.00016763,2]
[366219822,1750128650811,-490.0,0.00016763,2]
[366219823,1750128650824,-263.64122297,0.00016763,2]
[366219824,1750128650837,-490.0,0.00016763,2]
[366219825,1750128650854,-504.45,0.00016763,2]
[366219826,1750128650869,-490.0,0.00016763,2]
[366219827,1750128650882,-490.0,0.00016763,2]
[366219828,1750128650896,-571.07245241,0.00016763,2]
[366219829,1750128650909,-490.0,0.00016763,2]
[366219830,1750128650921,-487.58949815,0.00016763,2]
[366219831,1750128650934,-831.93,0.00016763,2]
[366219832,1750128650945,-490.0,0.00016763,2]
[366219833,1750128650959,-551.06,0.00016763,2]
[366219834,1750128650972,-490.0,0.00016763,2]
[366219835,1750128650985,-1698.43,0.00016763,2]
[366219836,1750128650997,-490.0,0.00016763,2]
[366219837,1750128651012,-490.0,0.00016763,2]
[366219838,1750128651025,-490.0,0.00016763,2]
[366219839,1750128651039,-490.0,0.00016763,2]
[366219840,1750128651052,-490.0,0.00016763,2]
[366219841,1750128651078,-490.0,0.00016763,2]
[366219842,1750128651092,-490.0,0.00016763,2]
[366219843,1750128651105,-490.0,0.00016763,2]
[366219844,1750128651117,-490.0,0.00016763,2]
[366219845,1750128651130,-490.0,0.00016763,2]
[366219846,1750128651143,-696.06,0.00016763,2]
[366219847,1750128651155,-753.02,0.00016763,2]
[366219848,1750128651168,-490.0,0.00016763,2]
[366219849,1750128651180,-490.0,0.00016763,2]
[366219850,1750128651193,-155.47354763,0.00016763,2]
[366219851,1750128651206,-490.0,0.00016763,2]
[366219852,1750128651232,-788.67,0.00016763,2]
[366219853,1750128651248,-1210.83,0.00016763,2]
[366219854,1750128651261,-490.0,0.00016763,2]
[366219855,1750128651276,-841.26,0.00016763,2]
[366219856,1750128651291,-166.90090813,0.00016763,2]
[366219857,1750128651304,-488.7882399,0.00016763,2]
[366219858,1750128651318,-755.73,0.00016763,2]
[366219859,1750128651333,-2097.86,0.00016763,2]
[366219860,1750128651346,-490.0,0.00016763,2]
[366219861,1750128651359,-490.0,0.00016763,2]
[366219862,1750128651373,-490.0,0.00016763,2]
[366219863,1750128651385,-490.0,0.00016763,2]
[366219864,1750128651399,-1167.52,0.00016763,2]
[366219865,1750128651411,-490.0,0.00016763,2]
[366219866,1750128651426,-1719.04,0.00016763,2]
[366219867,1750128651441,-490.0,0.00016763,2]
[366219868,1750128651454,-490.0,0.00016763,2]
[366219869,1750128651468,-500.3944561,0.00016763,2]
[366219870,1750128651481,-739.05,0.00016763,2]
[366219871,1750128651493,-4373.89,0.00016763,2]
[366219872,1750128651506,-490.0,0.00016763,2]
[366219873,1750128651519,-1003.52,0.00016763,2]
[366219874,1750128651531,-645.08,0.00016763,2]
[366219875,1750128651544,-490.0,0.00016763,2]
[366219876,1750128651557,-887.68,0.00016763,2]
[366219877,1750128651569,-1285.11,0.00016763,2]
[366219878,1750128651581,-490.0,0.00016763,2]
[366219879,1750128651593,-490.0,0.00016763,2]
[366219880,1750128651606,-490.0,0.00016763,2]
[366219881,1750128651618,-490.0,0.00016763,2]
[366219882,1750128651636,-490.0,0.00016763,2]
[366219883,1750128651650,-422.53001872,0.00016763,2]
[366219884,1750128651664,-490.0,0.00016763,2]
[366219885,1750128651678,-524.86,0.00016763,2]
[366219886,1750128651693,-490.0,0.00016763,2]
[366219887,1750128651706,-490.0,0.00016763,2]
[366219888,1750128651720,-490.0,0.00016763,2]
[366219889,1750128651734,-490.0,0.00016763,2]
[366219890,1750128651747,-490.0,0.00016763,2]
[366219891,1750128651760,-490.0,0.00016763,2]
[366219892,1750128651773,-1726.48,0.00016763,2]
[366219893,1750128651786,-490.0,0.00016763,2]
[366219894,1750128651800,-490.0,0.00016763,2]
[366219895,1750128651813,-490.0,0.00016763,2]
[366219896,1750128651826,-286.18011135,0.00016763,2]
[366219897,1750128651839,-490.0,0.00016763,2]
[366219898,1750128651852,-490.0,0.00016763,2]
[366219899,1750128651864,-490.0,0.00016763,2]
[366219900,1750128651878,-623.72,0.00016763,2]
[366219901,1750128651890,-742.0,0.00016763,2]
[366219902,1750128651903,-989.99,0.00016763,2]
[366219903,1750128651915,-490.0,0.00016763,2]
[366219904,1750128651928,-490.0,0.00016763,2]
[366219905,1750128651940,-490.0,0.00016763,2]
[366219906,1750128651952,-897.14,0.00016763,2]
[366219907,1750128651965,-490.0,0.00016763,2]
[366219908,1750128651977,-490.0,0.00016763,2]
[366219909,1750128651991,-490.0,0.00016763,2]
[366219910,1750128652003,-490.0,0.00016763,2]
[366219911,1750128652015,-546.08,0.00016763,2]
[366219912,1750128652027,-493.75249006,0.00016763,2]
[366219913,1750128652045,-490.0,0.00016763,2]
[366219914,1750128652059,-543.7,0.00016763,2]
[366219915,1750128652072,-490.0,0.00016763,2]
[366219916,1750128652085,-490.0,0.00016763,2]
[366219917,1750128652099,-490.0,0.00016763,2]
[366219918,1750128652113,-490.0,0.00016763,2]
[366219919,1750128652133,-496.87,0.00016763,2]
[366219920,1750128652147,-490.0,0.00016763,2]
[366219921,1750128652160,-490.0,0.00016763,2]
[366219922,1750128652173,-490.0,0.00016763,2]
[366219923,1750128652185,-490.0,0.00016763,2]
[366219924,1750128652198,-490.0,0.00016763,2]
[366219925,1750128652212,-421.45,0.00016763,2]
[366219926,1750128652226,-6660.4,0.00016763,2]
[366219927,1750128652238,-342.38176123,0.00016763,2]
[366219928,1750128652252,-521.23,0.00016763,2]
[366219929,1750128652267,-491.15053045,0.00016764,2]
[366219930,1750128652279,-490.65499801,0.00016764,2]
[366219931,1750128652292,-168.4,0.00016764,2]
[366219932,1750128652304,-525.92,0.00016764,2]
[366219933,1750128652316,-366.27,0.00016764,2]
[366219934,1750128652329,-544.35,0.00016764,2]
[366219935,1750128652341,-558.53,0.00016764,2]
[366219936,1750128652352,-490.0,0.00016764,2]
[366219937,1750128652368,-194.06,0.00016764,2]
[366219938,1750128652380,-490.0,0.00016764,2]
[366219939,1750128652391,-256.4,0.00016764,2]
[366219940,1750128652404,-480.91,0.00016764,2]
[366219941,1750128652416,-490.0,0.00016764,2]
[366219942,1750128652428,-528.96,0.00016764,2]
[366219943,1750128652441,-249.46,0.00016764,2]
[366219944,1750128652454,-243.38,0.00016764,2]
[366219945,1750128652471,-233.09,0.00016764,2]
[366219946,1750128652484,-552.83864653,0.00016764,2]
[366219947,1750128652497,-365.06,0.00016764,2]
[366219948,1750128652511,-490.0,0.00016764,2]
[366219949,1750128652524,-591.46,0.00016764,2]
[366219950,1750128652536,-450.94,0.00016764,2]
[366219951,1750128652550,-490.0,0.00016764,2]
[366219952,1750128652562,-490.0,0.00016764,2]
[366219953,1750128652574,-490.0,0.00016764,2]
[366219954,1750128652586,-490.0,0.00016764,2]
[366219955,1750128652598,-490.0,0.00016764,2]
[366219956,1750128652611,-490.0,0.00016764,2]
[366219957,1750128652623,-490.0,0.00016764,2]
[366219958,1750128652636,-490.0,0.00016764,2]
[366219959,1750128652648,-490.0,0.00016764,2]
[366219960,1750128652661,-213.72911862,0.00016764,2]
[366219961,1750128652674,-232.20752264,0.00016764,2]
[366219962,1750128652687,-317.30196429,0.00016764,2]
[366219963,1750128652699,-308.42647875,0.00016764,2]
[366219964,1750128652711,-490.0,0.00016764,2]
[366219965,1750128652724,-490.0,0.00016764,2]
[366219966,1750128652737,-490.0,0.00016764,2]
[366219967,1750128652748,-490.0,0.00016764,2]
[366219968,1750128652761,-490.0,0.00016764,2]
[366219969,1750128652772,-490.0,0.00016764,2]
[366219970,1750128652784,-490.0,0.00016764,2]
[366219971,1750128652796,-490.0,0.00016764,2]
[366219972,1750128652809,-490.0,0.00016764,2]
[366219973,1750128652821,-490.0,0.00016764,2]
[366219974,1750128652833,-490.0,0.00016764,2]
[366219975,1750128652846,-578.60990331,0.00016764,2]
[366219976,1750128652858,-490.0,0.00016764,2]
[366219977,1750128652870,-490.0,0.00016764,2]
[366219978,1750128652893,-516.3341726,0.00016764,2]
[366219979,1750128652909,-623.66301421,0.00016764,2]
[366219980,1750128652923,-490.0,0.00016764,2]
[366219981,1750128652936,-490.0,0.00016764,2]
[366219982,1750128652950,-407.85536819,0.00016764,2]
[366219983,1750128652964,-490.0,0.00016764,2]
[366219984,1750128652978,-490.0,0.00016764,2]
[366219985,1750128652991,-276.25043602,0.00016764,2]
[366219986,1750128653004,-584.42,0.00016764,2]
[366219987,1750128653016,-490.0,0.00016764,2]
[366219988,1750128653029,-490.0,0.00016764,2]
[366219989,1750128653043,-490.0,0.00016764,2]
[366219990,1750128653057,-490.0,0.00016764,2]
[366219991,1750128653070,-490.0,0.00016764,2]
[366219992,1750128653084,-493.21296145,0.00016764,2]
[366219993,1750128653097,-495.41204659,0.00016764,2]
[366219994,1750128653110,-490.0,0.00016764,2]
[366219995,1750128653124,-490.0,0.00016764,2]
[366219996,1750128653137,-496.49844861,0.00016764,2]
[366219997,1750128653150,-490.0,0.00016764,2]
[366219998,1750128653162,-541.45858814,0.00016764,2]
[366219999,1750128653175,-387.29,0.00016764,2]
[366220000,1750128653187,-526.47487804,0.00016764,2]
[366220001,1750128653201,-490.0,0.00016764,2]
[366220002,1750128653213,-493.05426189,0.00016764,2]
[366220003,1750128653225,-490.0,0.00016764,2]
[366220004,1750128653238,-534.60437471,0.00016764,2]
[366220005,1750128653252,-490.0,0.00016764,2]
[366220006,1750128653264,-495.2405877,0.00016764,2]
[366220007,1750128653276,-496.90031147,0.00016764,2]
[366220008,1750128653288,-490.0,0.00016764,2]
[366220009,1750128653300,-529.20446163,0.00016764,2]
[366220010,1750128653312,-449.58851943,0.00016764,2]
[366220011,1750128653324,-490.0,0.00016764,2]
[366220012,1750128653336,-490.0,0.00016764,2]
[366220013,1750128653348,-492.3662526,0.00016764,2]
[366220014,1750128653359,-510.77832443,0.00016764,2]
[366220015,1750128653373,-488.04980008,0.00016764,2]
[366220016,1750128653385,-490.0,0.00016764,2]
[366220017,1750128653399,-490.0,0.00016764,2]
[366220018,1750128653413,-490.0,0.00016764,2]
[366220019,1750128653425,-488.05932523,0.00016764,2]
[366220020,1750128653439,-498.44134911,0.00016764,2]
[366220021,1750128653453,-424.15408365,0.00016764,2]
[366220022,1750128653470,-398.95723836,0.00016764,2]
[366220023,1750128653482,-496.77738922,0.00016764,2]
[366220024,1750128653492,-490.0,0.00016764,2]
[366220025,1750128653502,-496.21582775,0.00016764,2]
[366220026,1750128653513,-529.44261952,0.00016764,2]
[366220027,1750128653522,-490.0,0.00016764,2]
[366220028,1750128653532,-490.0,0.00016764,2]
[366220029,1750128653542,-494.60170269,0.00016764,2]
[366220030,1750128653552,-491.06420186,0.00016764,2]
[366220031,1750128653561,-600.66143637,0.00016764,2]
[366220032,1750128653571,-490.0,0.00016764,2]
[366220033,1750128653581,-490.0,0.00016764,2]
[366220034,1750128653591,-575.9400207,0.00016764,2]
[366220035,1750128653600,-490.0,0.00016764,2]
[366220036,1750128653610,-490.0,0.00016764,2]
[366220037,1750128653620,-496.28240148,0.00016764,2]
[366220038,1750128653630,-498.64930624,0.00016764,2]
[366220039,1750128653640,-490.0,0.00016764,2]
[366220040,1750128653650,-494.66571487,0.00016764,2]
[366220041,1750128653660,-490.0,0.00016764,2]
[366220042,1750128653670,-500.60200638,0.00016764,2]
[366220043,1750128653679,-490.0,0.00016764,2]
[366220044,1750128653689,-614.23047153,0.00016764,2]
[366220045,1750128653699,-490.0,0.00016764,2]
[366220046,1750128653708,-502.39816249,0.00016764,2]
[366220047,1750128653718,-491.47506369,0.00016764,2]
[366220048,1750128653728,-493.5766582,0.00016764,2]
[366220049,1750128653739,-493.69656497,0.00016764,2]
[366220050,1750128653749,-490.0,0.00016764,2]
[366220051,1750128653759,-305.7716523,0.00016764,2]
[366220052,1750128653769,-499.61282902,0.00016764,2]
[366220053,1750128653779,-496.03613167,0.00016764,2]
[366220054,1750128653790,-203.26305745,0.00016764,2]
[366220055,1750128653800,-498.05403539,0.00016764,2]